bitfinex/quotes_SOLUSD_20240809
["timestamp","ask_amount","ask_price","bid_price","bid_amount"]
[1723195684484,26.83,158.36,158.34,6.3155]
[1723195684786,42.9729,158.39,158.33,15.7897]
[1723195685080,26.83,158.41,158.37,15.7848]
[1723195685570,26.83,158.38,158.34,6.3152]
[1723195685765,26.83,158.38,158.35,6.3151]
[1723195687173,26.83,158.38,158.36,6.3145]
[1723195687357,26.83,158.4,158.37,6.3143]
[1723195687559,26.83,158.4,158.36,15.7866]
[1723195687560,45.0,158.39,158.36,22.1012]
[1723195688050,26.83,158.4,158.37,6.3142]
[1723195688249,26.83,158.4,158.36,22.1012]
[1723195688467,26.83,158.38,158.34,6.3153]
[1723195688966,26.83,158.38,158.33,15.7895]
[1723195689757,26.83,158.38,158.35,6.3151]
[1723195689957,26.83,158.38,158.34,6.3151]
[1723195690569,26.83,158.38,158.33,15.7895]
[1723195691178,26.83,158.38,158.34,6.3154]
[1723195691751,26.83,158.38,158.33,15.7895]
[1723195691970,26.83,158.36,158.3,15.7926]
[1723195692163,26.83,158.36,158.32,6.3163]
[1723195692477,26.83,158.36,158.33,6.3157]
[1723195692670,26.83,158.36,158.34,6.3154]
[1723195692870,26.83,158.36,158.35,6.3151]
[1723195693070,71.83,158.36,158.35,6.3151]
[1723195693367,26.83,158.38,158.33,15.7896]
[1723195693573,26.83,158.4,158.35,15.7868]
[1723195693776,26.83,158.42,158.38,6.3139]
[1723195693959,26.83,158.42,158.39,6.3133]
[1723195694165,42.459,158.43,158.39,6.3135]
[1723195694776,6.2207,158.48,158.42,6.312]
[1723195694970,26.83,158.46,158.43,6.3118]
[1723195695968,26.83,158.45,158.38,15.7846]
[1723195696157,26.83,158.43,158.38,15.7846]
[1723195696365,6.3124,158.42,158.38,22.0981]
[1723195696575,26.83,158.43,158.38,22.0981]
[1723195696780,26.83,158.43,158.39,6.3134]
[1723195696964,26.83,158.43,158.4,6.313]
[1723195697162,26.83,158.43,158.38,15.7846]
[1723195697480,6.3125,158.42,158.38,15.7846]
[1723195698279,6.3125,158.42,158.38,22.0984]
[1723195698667,26.83,158.41,158.38,22.0984]
[1723195698885,26.83,158.41,158.38,15.7846]
[1723195699180,26.83,158.43,158.4,6.3131]
[1723195699391,45.0,158.42,158.39,6.3134]
[1723195699859,26.83,158.44,158.41,6.3126]
[1723195700872,26.83,158.44,158.4,15.7821]
[1723195701082,26.83,158.42,158.38,6.3138]
[1723195701272,26.83,158.42,158.39,6.3134]
[1723195701880,26.83,158.42,158.38,6.3138]
[1723195702078,45.0,158.41,158.38,6.3138]
[1723195702277,26.83,158.42,158.39,6.3133]
[1723195702667,26.83,158.42,158.37,15.7854]
[1723195702668,26.83,158.42,158.4,6.313]
[1723195702870,26.83,158.43,158.4,6.313]
[1723195703069,45.0,158.42,158.4,6.313]
[1723195703276,26.83,158.43,158.41,6.3125]
[1723195703882,26.83,158.43,158.39,22.0963]
[1723195704987,26.83,158.43,158.35,47.732]
[1723195705194,45.0,158.42,158.36,15.7864]
[1723195705487,45.0,158.42,158.38,6.3135]
[1723195706066,45.0,158.42,158.39,6.3134]
[1723195706274,26.83,158.43,158.36,26.83]
[1723195706575,26.83,158.45,158.43,6.3118]
[1723195706780,26.83,158.46,158.44,6.3115]
[1723195706970,26.83,158.46,158.42,15.7801]
[1723195707301,26.83,158.46,158.44,6.3114]
[1723195707486,26.83,158.46,158.42,22.092]
[1723195708179,26.83,158.46,158.43,6.3118]
[1723195708383,26.83,158.44,158.41,6.3126]
[1723195708568,9.8940184,158.48,158.39,26.83]
[1723195708886,26.83,158.46,158.43,6.3117]
[1723195709070,78.1403,158.47,158.43,6.3117]
[1723195709270,78.1403,158.47,158.42,22.0926]
[1723195709786,78.1403,158.47,158.43,6.3118]
[1723195709992,78.1404,158.47,158.43,6.3118]
[1723195710288,26.83,158.46,158.44,6.3114]
[1723195710472,71.83,158.47,158.44,6.3114]
[1723195710874,71.83,158.47,158.43,6.3118]
[1723195711191,71.83,158.47,158.44,6.3115]
[1723195711397,26.83,158.47,158.44,6.3115]
[1723195711699,26.83,158.47,158.43,6.3119]
[1723195711901,26.83,158.46,158.42,22.0926]
[1723195712892,26.83,158.46,158.43,6.3119]
[1723195713287,26.83,158.47,158.44,6.3114]
[1723195714595,26.83,158.47,158.43,6.3118]
[1723195715399,26.83,158.47,158.44,6.3114]
[1723195715898,33.1403,158.47,158.42,22.0925]
[1723195716810,26.83,158.46,158.42,22.0925]
[1723195717310,26.83,158.47,158.43,6.3118]
[1723195718185,26.83,158.47,158.44,6.3114]
[1723195718677,26.83,158.47,158.43,6.3118]
[1723195720929,6.3122,158.43,158.38,22.0976]
[1723195721082,26.83,158.42,158.38,22.0976]
[1723195721376,33.1437,158.39,158.35,15.7873]
[1723195721583,26.83,158.37,158.35,15.7873]
[1723195721987,26.83,158.36,158.33,6.3157]
[1723195722602,26.83,158.34,158.29,15.7935]
[1723195722810,26.83,158.34,158.31,6.3165]
[1723195725621,26.83,158.32,158.29,22.1106]
[1723195725785,26.83,158.31,158.29,15.7935]
[1723195726494,26.83,158.3,158.29,15.7935]
[1723195726688,26.83,158.3,158.29,22.111]
[1723195726887,26.83,158.31,158.29,22.111]
[1723195728087,26.83,158.31,158.24,37.6086]
[1723195728088,6.5365,158.29,158.13,6.2945]
[1723195728298,6.5365,158.29,158.14,58.4472]
[1723195728299,26.83,158.23,158.14,58.4472]
[1723195728785,45.0,158.22,158.14,58.4472]
[1723195728981,45.0,158.22,158.17,22.1278]
[1723195729189,51.3204,158.22,158.17,15.8056]
[1723195729507,45.0,158.22,158.17,22.1277]
[1723195729704,45.0,158.22,158.18,6.3217]
[1723195730086,26.83,158.23,158.18,6.3217]
[1723195731311,26.83,158.23,158.19,6.3214]
[1723195732391,26.83,158.23,158.18,6.3219]
[1723195733110,33.15,158.23,158.18,6.3219]
[1723195733408,33.15,158.23,158.17,22.1278]
[1723195733612,26.83,158.21,158.14,31.6172]
[1723195734202,26.83,158.21,158.16,6.3225]
[1723195734405,26.83,158.21,158.16,15.8067]
[1723195734712,33.1507,158.21,158.16,22.1293]
[1723195735199,26.83,158.21,158.16,22.1293]
[1723195736614,26.83,158.21,158.17,6.3221]
[1723195738109,6.319,158.26,158.19,15.8036]
[1723195738309,26.83,158.25,158.18,26.83]
[1723195738507,26.83,158.26,158.21,15.8008]
[1723195739603,26.83,158.25,158.21,15.8008]
[1723195739909,20.0,158.28,158.23,6.3198]
[1723195739910,26.83,158.26,158.23,6.3198]
[1723195740508,26.83,158.24,158.21,22.1212]
[1723195741331,26.83,158.24,158.22,6.3202]
[1723195741518,26.83,158.25,158.22,6.3202]
[1723195743409,26.83,158.25,158.21,22.1214]
[1723195743599,26.83,158.24,158.21,22.1214]
[1723195744510,26.83,158.24,158.22,6.3202]
[1723195744720,26.83,158.25,158.22,6.3202]
[1723195745313,26.83,158.25,158.24,6.3195]
[1723195745494,26.83,158.27,158.25,6.3191]
[1723195745909,26.83,158.27,158.24,6.3194]
[1723195746815,26.83,158.28,158.24,6.3194]
[1723195747016,26.83,158.27,158.24,6.3194]
[1723195747318,26.83,158.26,158.23,22.1186]
[1723195748517,26.83,158.25,158.22,6.3202]
[1723195748831,26.83,158.24,158.21,6.3206]
[1723195748997,26.83,158.23,158.21,6.3206]
[1723195749597,26.83,158.23,158.2,22.1234]
[1723195750005,26.83,158.23,158.21,6.3206]
[1723195750204,26.83,158.23,158.2,15.8024]
[1723195750411,26.83,158.21,158.17,22.1278]
[1723195750612,26.83,158.2,158.17,22.1278]
[1723195751113,26.83,158.19,158.17,22.1278]
[1723195753118,26.83,158.19,158.18,6.3219]
[1723195753296,26.83,158.21,158.19,6.3215]
[1723195753498,26.83,158.22,158.2,6.3211]
[1723195753726,26.83,158.22,158.18,6.3215]
[1723195753900,26.83,158.21,158.18,6.3215]
[1723195754096,26.83,158.21,158.17,15.8056]
[1723195754408,26.83,158.2,158.17,22.1278]
[1723195755711,26.83,158.2,158.18,6.3217]
[1723195756309,26.83,158.22,158.19,6.3215]
[1723195756719,26.83,158.22,158.18,6.3218]
[1723195756916,26.83,158.2,158.18,6.3218]
[1723195757317,26.83,158.19,158.17,22.1278]
[1723195757617,26.83,158.21,158.18,6.3219]
[1723195758520,26.83,158.2,158.17,15.8056]
[1723195758724,26.83,158.19,158.17,15.8056]
[1723195758919,26.83,158.18,158.17,15.8056]
[1723195759624,26.83,158.18,158.17,22.1279]
[1723195760019,26.83,158.18,158.17,15.8056]
[1723195760236,6.3226,158.17,158.12,6.3242]
[1723195760408,26.83,158.15,158.12,6.3242]
[1723195760825,21.6105,158.19,158.11,0.8177295]
[1723195761030,26.83,158.16,158.11,0.8177295]
[1723195761227,26.83,158.17,158.14,15.8085]
[1723195761705,26.83,158.17,158.15,6.323]
[1723195762110,26.83,158.17,158.14,22.1319]
[1723195763231,26.83,158.2,158.16,15.8059]
[1723195763404,26.83,158.2,158.18,6.3215]
[1723195763612,45.0,158.22,158.18,6.3215]
[1723195763613,26.83,158.21,158.18,6.3215]
[1723195764316,26.83,158.19,158.16,15.8059]
[1723195764516,26.83,158.17,158.13,15.8097]
[1723195765138,26.83,158.17,158.14,6.3234]
[1723195765324,26.83,158.17,158.15,6.323]
[1723195765529,26.83,158.18,158.15,6.323]
[1723195765713,26.83,158.19,158.16,6.3226]
[1723195765914,26.83,158.2,158.16,6.3226]
[1723195766142,26.83,158.2,158.17,6.3222]
[1723195766349,26.83,158.21,158.18,6.3218]
[1723195766517,26.83,158.2,158.16,6.3223]
[1723195766915,26.83,158.18,158.15,15.807]
[1723195767433,26.83,158.18,158.15,22.13]
[1723195768015,26.83,158.17,158.11,16.6287295]
[1723195768214,26.83,158.17,158.13,15.809]
[1723195768422,26.83,158.18,158.15,6.3228]
[1723195768724,26.83,158.18,158.13,15.809]
[1723195768928,26.83,158.2,158.15,15.807]
[1723195769942,26.83,158.2,158.18,6.3217]
[1723195770111,26.83,158.21,158.17,6.3222]
[1723195770317,26.83,158.2,158.15,15.807]
[1723195770542,26.83,158.2,158.16,6.3224]
[1723195771256,26.83,158.19,158.16,6.3224]
[1723195771552,26.83,158.19,158.15,22.13]
[1723195772345,26.83,158.19,158.15,22.1301]
[1723195772652,26.83,158.17,158.15,22.1301]
[1723195772832,26.83,158.17,158.15,15.807]
[1723195773150,26.83,158.17,158.14,6.3234]
[1723195773447,26.83,158.18,158.14,22.1314]
[1723195773813,26.83,158.16,158.14,15.808]
[1723195774045,26.83,158.16,158.11,16.6292295]
[1723195774250,26.83,158.16,158.12,6.3239]
[1723195774549,26.83,158.16,158.13,6.3238]
[1723195774852,26.83,158.16,158.12,6.3242]
[1723195775054,26.83,158.13,158.11,22.9538295]
[1723195775259,26.83,158.13,158.11,0.8177295]
[1723195775428,26.83,158.12,158.11,0.8177295]
[1723195777831,71.83,158.12,158.11,0.8177295]
[1723195778231,71.83,158.12,158.05,31.6354]
[1723195778232,78.1543,158.12,158.06,6.3266]
[1723195778440,26.83,158.07,157.97,28.0953057]
[1723195778743,26.83,158.07,158.05,6.3271]
[1723195779144,26.83,158.07,158.04,6.3275]
[1723195779328,26.83,158.06,158.03,22.1469]
[1723195779529,26.83,158.06,158.03,15.819]
[1723195779963,26.83,158.06,157.99,26.83]
[1723195780270,26.83,158.05,158.01,6.3283]
[1723195780435,6.327,158.06,158.02,15.8198]
[1723195780436,26.83,158.06,158.02,15.8198]
[1723195780631,26.83,158.07,158.0,58.4743]
[1723195780930,26.83,158.05,158.02,15.8206]
[1723195781871,26.83,158.06,158.02,15.8206]
[1723195782160,26.83,158.07,158.04,6.3271]
[1723195782336,26.83,158.08,158.04,15.818]
[1723195782533,26.83,158.1,158.03,26.83]
[1723195782751,26.83,158.11,158.08,6.3255]
[1723195782951,26.83,158.1,158.08,6.3255]
[1723195784061,26.83,158.11,158.07,6.3262]
[1723195784367,26.83,158.1,158.07,6.3262]
[1723195784562,26.83,158.11,158.07,6.3262]
[1723195784884,26.83,158.11,158.08,6.3258]
[1723195785091,26.83,158.12,158.08,15.814]
[1723195785277,26.83,158.12,158.1,6.325]
[1723195785577,28.5109,158.14,158.09,6.3254]
[1723195785578,26.83,158.11,158.09,6.3254]
[1723195785754,26.83,158.12,158.09,6.3254]
[1723195786090,26.83,158.1,158.06,6.3266]
[1723195786879,26.83,158.1,158.07,6.3263]
[1723195787989,33.1547,158.11,158.06,6.3266]
[1723195788167,26.83,158.1,158.06,6.3266]
[1723195788366,26.83,158.11,158.07,6.3261]
[1723195790086,26.83,158.09,158.05,15.8175]
[1723195790305,26.83,158.1,158.06,6.3263]
[1723195790473,26.83,158.11,158.05,15.8175]
[1723195790989,26.83,158.11,158.08,6.3258]
[1723195793378,26.83,158.11,158.07,6.3262]
[1723195793589,22.7972,158.2,158.08,28.09505133]
[1723195793790,33.1528,158.16,158.11,6.3246]
[1723195794093,26.83,158.15,158.11,6.3246]
[1723195794864,26.83,158.14,158.1,15.812]
[1723195795201,26.83,158.14,158.11,6.3246]
[1723195795496,26.83,158.15,158.11,6.3246]
[1723195796365,26.83,158.15,158.12,6.3242]
[1723195796596,26.83,158.15,158.11,6.3246]
[1723195796892,26.83,158.15,158.12,6.3242]
[1723195797065,33.1531,158.15,158.1,22.137]
[1723195797405,6.3235,158.14,158.1,15.812]
[1723195797961,33.1532,158.15,158.1,15.812]
[1723195798381,26.83,158.15,158.11,6.3246]
[1723195798661,26.83,158.17,158.13,6.3238]
[1723195799307,26.83,158.17,158.14,6.3234]
[1723195799960,26.83,158.17,158.12,15.8101]
[1723195800165,33.1516,158.19,158.12,42.6401]
[1723195800365,6.3216,158.19,158.12,42.6401]
[1723195800584,6.3216,158.19,158.14,6.3231]
[1723195800793,33.1512,158.2,158.16,6.3226]
[1723195800981,33.1512,158.2,158.14,15.8082]
[1723195801272,33.1512,158.2,158.15,6.323]
[1723195802379,6.3215,158.19,158.14,22.1316]
[1723195803598,6.3219,158.18,158.14,22.1316]
[1723195803902,33.153,158.16,158.11,22.1361]
[1723195804670,26.83,158.18,158.11,15.8114]
[1723195805105,33.1522,158.18,158.13,6.3236]
[1723195805689,33.1516,158.19,158.14,6.3233]
[1723195805884,78.1511,158.2,158.15,6.3231]
[1723195806086,26.83,158.21,158.17,6.3222]
[1723195806413,26.83,158.22,158.17,6.3222]
[1723195806700,6.3208,158.21,158.16,6.3226]
[1723195808005,26.83,158.19,158.12,26.83]
[1723195808206,6.3229,158.16,158.11,15.8108]
[1723195808576,33.1532,158.15,158.1,22.2349]
[1723195808772,26.83,158.17,158.12,6.3242]
[1723195809006,33.1523,158.17,158.13,6.3238]
[1723195809208,33.1523,158.17,158.12,6.3242]
[1723195809384,6.3228,158.16,158.12,6.3242]
[1723195810697,6.3228,158.16,158.11,6.3246]
[1723195811088,6.3228,158.16,158.12,6.3242]
[1723195812120,26.83,158.17,158.13,6.3237]
[1723195812278,33.152,158.18,158.13,6.3237]
[1723195812477,51.3223,158.17,158.13,6.3237]
[1723195813313,51.3223,158.17,158.12,6.3241]
[1723195813915,6.3228,158.16,158.12,6.3241]
[1723195814597,26.83,158.21,158.14,26.83]
[1723195814804,26.83,158.22,158.17,6.3221]
[1723195815016,26.83,158.21,158.17,6.3221]
[1723195815385,26.83,158.22,158.17,6.3221]
[1723195815803,6.3203,158.22,158.18,6.3217]
[1723195816091,22.9637,158.24,158.18,42.6339]
[1723195816515,22.9637,158.24,158.2,6.3208]
[1723195816893,29.2832,158.24,158.2,6.3208]
[1723195817607,29.2832,158.24,158.19,6.3214]
[1723195818191,6.3206,158.22,158.18,15.8039]
[1723195820099,22.9637,158.24,158.15,48.9603]
[1723195820100,6.3214,158.2,158.15,48.9603]
[1723195820316,6.3219,158.18,158.13,6.3238]
[1723195820707,33.1519,158.18,158.13,6.3238]
[1723195821607,6.3223,158.17,158.12,22.1346]
[1723195822005,33.1523,158.17,158.12,22.1346]
[1723195822211,33.1523,158.17,158.13,6.3238]
[1723195823022,33.1517,158.19,158.14,6.3235]
[1723195823209,45.0,158.18,158.15,6.323]
[1723195823718,45.0,158.19,158.15,6.323]
[1723195824212,51.3215,158.19,158.15,6.323]
[1723195824728,51.3215,158.19,158.14,15.808]
[1723195824729,78.1515,158.19,158.14,22.1314]
[1723195825102,26.83,158.22,158.15,26.83]
[1723195825323,33.1502,158.23,158.18,6.3217]
[1723195825501,33.1506,158.22,158.17,6.3222]
[1723195825709,22.9637,158.24,158.16,15.8061]
[1723195825710,22.9637,158.24,158.18,15.8041]
[1723195826000,49.7937,158.24,158.2,6.3207]
[1723195826401,33.1494,158.25,158.2,6.3207]
[1723195826715,33.1494,158.25,158.21,6.3206]
[1723195826914,22.6898,158.28,158.13,1.2641549]
[1723195826915,26.83,158.27,158.17,16.6101]
[1723195827223,33.1483,158.27,158.22,22.1204]
[1723195828316,6.3187,158.26,158.22,22.1204]
[1723195829313,33.1487,158.26,158.22,15.8002]
[1723195830820,40.76132035,158.31,158.19,15.8037]
[1723195830821,26.83,158.24,158.19,15.8037]
[1723195831031,26.83,158.22,158.19,15.8037]
[1723195831196,26.83,158.22,158.18,6.3218]
[1723195831401,26.83,158.23,158.18,6.3218]
[1723195831604,33.1502,158.23,158.18,6.3218]
[1723195832103,26.83,158.24,158.18,15.8041]
[1723195832414,45.0,158.23,158.2,6.321]
[1723195832733,45.0,158.23,158.19,6.3214]
[1723195832928,26.83,158.21,158.15,15.8075]
[1723195833098,33.1519,158.18,158.13,21.4981]
[1723195833299,26.83,158.18,158.15,6.3227]
[1723195833533,26.83,158.21,158.14,26.83]
[1723195833722,26.83,158.21,158.13,15.1743]
[1723195833723,26.83,158.22,158.19,6.3211]
[1723195834222,26.83,158.21,158.15,15.8073]
[1723195834425,33.1512,158.2,158.15,22.13]
[1723195835517,33.1512,158.2,158.16,6.3226]
[1723195836027,6.3215,158.19,158.15,22.1303]
[1723195836242,26.83,158.19,158.15,22.1303]
[1723195836423,26.83,158.19,158.15,15.8073]
[1723195836620,26.83,158.18,158.15,15.8073]
[1723195837029,26.83,158.18,158.15,22.1302]
[1723195837326,26.83,158.19,158.15,22.1303]
[1723195837632,26.83,158.18,158.14,6.3233]
[1723195838327,33.1516,158.19,158.14,6.3233]
[1723195838726,45.0,158.23,158.13,15.8092]
[1723195838727,78.1519,158.18,158.13,15.8092]
[1723195838947,26.83,158.17,158.13,22.133]
[1723195839234,26.83,158.16,158.13,15.8092]
[1723195840808,6.3239,158.13,158.04,21.4998]
[1723195841118,26.83,158.14,158.04,21.4998]
[1723195841119,26.83,158.11,158.09,6.3254]
[1723195841732,26.83,158.1,158.08,6.3259]
[1723195842054,26.83,158.09,158.05,6.3269]
[1723195842345,26.83,158.07,158.05,6.3269]
[1723195842540,26.83,158.07,158.04,6.3274]
[1723195843544,26.83,158.06,158.04,6.3274]
[1723195843708,26.83,158.05,158.04,6.3274]
[1723195844228,26.83,158.05,158.03,22.1465]
[1723195844439,26.83,158.06,158.03,22.1465]
[1723195844750,6.3307,157.96,157.95,0.8177295]
[1723195844960,33.1607,157.96,157.95,0.8177295]
[1723195845165,78.1607,157.96,157.95,0.8177295]
[1723195845747,86.0207,157.96,157.95,0.8177295]
[1723195847838,86.0207,157.96,157.84,6.3355]
[1723195847839,115.5169,157.96,157.84,6.3355]
[1723195848039,115.5169,157.96,157.85,6.3351]
[1723195848040,34.69,157.9,157.85,6.3351]
[1723195848235,45.0,157.89,157.85,6.335]
[1723195848539,34.69,157.9,157.83,15.839]
[1723195848752,45.0,157.89,157.83,15.839]
[1723195849456,45.0,157.89,157.84,6.3353]
[1723195849743,34.69,157.88,157.83,22.1749]
[1723195849926,45.0,157.87,157.84,6.3354]
[1723195850125,45.0,157.89,157.84,6.3354]
[1723195850944,34.69,157.9,157.87,6.3343]
[1723195851118,34.69,157.92,157.87,6.3343]
[1723195851315,34.69,157.92,157.86,22.1714]
[1723195851516,34.69,157.9,157.86,15.8367]
[1723195852046,34.69,157.92,157.86,22.1713]
[1723195852238,34.69,157.92,157.87,6.3341]
[1723195852434,41.0223,157.92,157.87,6.3341]
[1723195852741,45.0,157.91,157.87,6.3341]
[1723195853435,34.69,157.94,157.86,15.8367]
[1723195853824,34.69,157.94,157.89,15.8336]
[1723195854031,6.1801,157.98,157.89,15.8336]
[1723195854326,6.3315,157.94,157.89,22.167]
[1723195854524,34.69,157.96,157.9,6.3331]
[1723195854735,34.69,157.96,157.89,22.1667]
[1723195854932,34.69,157.96,157.9,6.333]
[1723195855244,6.3315,157.94,157.89,22.167]
[1723195855747,51.3311,157.95,157.9,6.333]
[1723195856558,6.3315,157.94,157.89,22.167]
[1723195857268,51.332,157.93,157.86,15.8367]
[1723195857466,41.0215,157.94,157.86,15.8367]
[1723195857742,41.0215,157.94,157.85,6.1777]
[1723195857743,6.3316,157.94,157.89,22.1671]
[1723195857939,34.69,157.96,157.89,22.1671]
[1723195857940,34.69,157.96,157.89,15.8337]
[1723195858117,45.0,157.95,157.89,15.8337]
[1723195858323,34.69,157.96,157.89,15.8337]
[1723195858535,41.0207,157.96,157.9,6.3329]
[1723195858839,6.3318,157.94,157.89,15.8337]
[1723195859056,34.69,157.94,157.89,15.8337]
[1723195859727,34.69,157.94,157.91,6.3323]
[1723195859931,34.69,157.96,157.92,6.3322]
[1723195860437,34.69,157.98,157.92,15.8306]
[1723195860821,34.69,157.98,157.94,6.3311]
[1723195861020,34.69,157.98,157.95,6.3309]
[1723195861240,15.8168,158.06,157.95,6.3308]
[1723195861464,34.69,158.0,157.94,15.8278]
[1723195861832,34.69,158.0,157.97,6.3302]
[1723195862031,34.69,158.02,157.96,15.8258]
[1723195862432,34.69,158.02,157.98,6.3299]
[1723195862951,34.69,158.02,157.98,15.824]
[1723195863150,34.69,158.02,157.98,22.1535]
[1723195863340,34.69,158.02,157.99,6.3294]
[1723195863535,275.5019,158.09,157.98,15.824]
[1723195863740,34.69,158.06,158.01,15.8215]
[1723195863942,34.69,158.06,158.01,22.1501]
[1723195864443,34.69,158.06,158.02,6.3281]
[1723195864749,34.69,158.06,158.03,6.3277]
[1723195864946,34.69,158.08,158.04,6.3272]
[1723195865159,34.69,158.08,158.01,15.8215]
[1723195865446,34.69,158.1,158.06,6.3266]
[1723195865649,34.69,158.1,158.04,15.8186]
[1723195865650,34.69,158.1,158.05,6.3271]
[1723195865836,41.0154,158.1,158.04,22.1457]
[1723195867144,34.69,158.1,158.04,15.8186]
[1723195867756,34.69,158.12,158.04,15.8186]
[1723195867932,34.69,158.12,158.07,6.3262]
[1723195868128,41.0144,158.12,158.04,15.8186]
[1723195868349,34.69,158.1,158.05,6.327]
[1723195868742,34.69,158.1,158.04,22.1459]
[1723195868941,41.0152,158.1,158.04,15.8186]
[1723195869145,41.0152,158.1,158.05,6.3271]
[1723195869146,34.69,158.1,158.05,6.3271]
[1723195869342,34.69,158.1,158.04,15.8186]
[1723195869542,34.69,158.1,158.05,6.3268]
[1723195869743,45.0,158.09,158.05,6.3268]
[1723195870844,34.69,158.08,158.04,22.1461]
[1723195871860,26.94,158.07,158.04,22.1461]
[1723195872059,26.94,158.07,158.05,6.3271]
[1723195873653,26.94,158.07,158.06,6.3267]
[1723195873858,6.3242,158.13,158.08,6.3259]
[1723195874060,26.94,158.11,158.08,6.3259]
[1723195874536,26.94,158.11,158.07,22.142]
[1723195875035,26.94,158.11,158.07,15.8157]
[1723195877465,26.94,158.11,158.07,22.1419]
[1723195878045,26.94,158.1,158.07,22.1419]
[1723195878244,26.94,158.11,158.07,22.1419]
[1723195881767,26.94,158.1,158.07,22.1419]
[1723195882071,26.94,158.08,158.04,15.8185]
[1723195882256,26.94,158.05,158.0,15.8218]
[1723195882577,26.94,158.04,158.0,22.1505]
[1723195882870,26.94,158.04,158.01,6.3285]
[1723195883247,26.94,158.05,158.02,15.8199]
[1723195883562,26.94,158.06,158.02,15.8199]
[1723195884455,26.94,158.06,158.04,6.3275]
[1723195884851,26.94,158.06,158.03,6.3278]
[1723195885178,26.94,158.05,158.02,22.1481]
[1723195885386,26.94,158.05,158.02,15.8199]
[1723195886154,26.94,158.08,158.04,15.818]
[1723195886444,26.94,158.06,158.01,15.8214]
[1723195887244,26.94,158.07,158.01,15.8214]
[1723195888266,9.91577688,158.12,157.98,23.0256]
[1723195888267,26.94,158.1,158.07,6.3259]
[1723195889065,26.94,158.1,158.06,22.1426]
[1723195889943,9.91577688,158.12,158.06,15.816]
[1723195890277,26.94,158.14,158.1,6.325]
[1723195890772,21.5749,158.15,158.1,6.325]
[1723195891071,9.9137432,158.18,158.09,42.7534]
[1723195891262,26.94,158.17,158.12,6.3242]
[1723195891650,26.94,158.15,158.09,15.8134]
[1723195891859,26.94,158.15,158.06,6.6291]
[1723195891860,6.3247,158.11,158.06,6.6291]
[1723195892059,6.3247,158.11,158.05,31.4697]
[1723195892568,33.2643,158.12,158.06,6.3266]
[1723195892768,33.2643,158.12,158.07,6.3261]
[1723195892769,45.0,158.11,158.07,6.3261]
[1723195892982,45.0,158.11,158.05,31.4697]
[1723195892983,26.94,158.12,158.08,15.8144]